[Event "European Women-ch 2023"]
[Site "Petrovac"]
[Date "2023.03.21"]
[Round "4.21"]
[White "Krasteva, Beloslava"]
[Black "Froewis, Annika"]
[Result "1-0"]
[ECO "E51"]
[WhiteElo "2292"]
[BlackElo "2123"]
[Annotator "TA"]
[PlyCount "89"]
[EventDate "2023.03.15"]
[EventType "swiss"]
[EventCountry "MNE"]
[SourceTitle "playchess.com"]
[Source "ChessBase"]
[SourceQuality "1"]
[TimeControl "40/5400+30:1800+30"]

{[%evp 19,89,0,18,0,20,21,27,6,15,2,66,0,13,5,14,-36,-40,-43,-45,-64,-38,-24,0,-52,107,6,116,97,245,281,318,291,286,304,346,354,346,348,350,281,10976,29950,5810,5397,2693,1393,1378,1372,1366,1355,1275,1049,1033,1030,1575,1007,1130,1109,1052,1083,997,979,5385,5389,5326,5314,4990,4503,4882,2850,29997,29998]} 1. d4 {[%emt 0:00:05]} Nf6 {[%emt 0:01:38]} 2. c4 {[%emt 0:00:07]} e6 {[%emt 0:00:20]} 3. Nc3 {[%emt 0:00:11]} Bb4 {[%emt 0:00:30]} 4. e3 {[%emt 0:00:17]} d5 {[%emt 0:05:43]} 5. a3 {[%emt 0:01:04]} Be7 {[%emt 0:05:35]} 6. Nf3 {[%emt 0:04:18]} O-O {[%emt 0:00:10]} 7. b3 {[%emt 0:05:50]} b6 {[%emt 0:00:43]} 8. Bd3 {[%emt 0:02:04]} Bb7 {[%emt 0:01:43]} 9. O-O {[%emt 0:01:17]} c5 {[%emt 0:02:23]} 10. Bb2 {[%emt 0:02:27]} Nbd7 {[%emt 0:01:15]} 11. Qe2 {[%emt 0:15:23] E51: Nimzo-Indian: Rubinstein: 4...0-0 5 Nf3 d5.} Rc8 {[%emt 0:17:55]} 12. Rfd1 {[%emt 0:02:53]} Qc7 {[%emt 0:01:13]} 13. Rac1 {[%emt 0:02:33] White has an edge.} Qb8 {[%emt 0:02:39]} 14. Ne5 {[%emt 0:08:46] [#]} Rfd8 $146 {[%emt 0:07:12]} (14... cxd4 $11 15. exd4 Rfd8) ({Predecessor:} 14... dxc4 15. bxc4 Rfd8 16. f4 Qa8 17. f5 Nf8 18. fxe6 fxe6 19. d5 exd5 20. Bf5 Rc7 {1-0 Doyle,J-Mayo,K West of Scotland Premier 2005 (3)}) 15. f4 {[%emt 0:06:04] White is much more active.} (15. cxd5 $1 $14 Nxe5 16. dxe5 Nxd5 17. Ne4 (17. Qh5 g6 $11)) 15... g6 {[%emt 0:06:34]} (15... dxc4 {seems wilder.} 16. bxc4 cxd4 17. exd4 Nxe5 18. fxe5 Rxd4 19. Bxh7+ Kxh7 20. Rxd4 Bc5) 16. cxd5 {[%emt 0:12:03]} Nxd5 {[%emt 0:07:30]} 17. Ne4 {[%emt 0:04:51]} ({White should try} 17. Nxd5 $11 Bxd5 18. Ba6 Nxe5 19. Bxc8 Bxb3 20. Re1) 17... cxd4 $15 {[%emt 0:04:04]} 18. Bxd4 {[%emt 0:02:55]} Rxc1 {[%emt 0:03:59]} 19. Rxc1 {[%emt 0:00:10]} Bxa3 {[%emt 0:00:58]} 20. Ra1 {[%emt 0:05:37]} Be7 {[%emt 0:04:24]} 21. Ng4 $1 {[%emt 0:00:54] Dodges N7f6} Kf8 $2 {[%emt 0:06:01] [#]} (21... f5 $15 {keeps the upper hand.} 22. Nh6+ Kf8) 22. Ng5 {[%emt 0:02:19]} ({Better is} 22. Qb2 $1 $16) 22... Bxg5 {[%emt 0:02:52]} (22... N7f6 $1 $11 23. Nxf6 Nxf6) 23. fxg5 $16 {[%emt 0:00:05] Hoping for Qf2.} e5 {[%emt 0:00:58] This move loses the game for Black.} (23... Qd6 $16 {might work better.}) 24. Bb2 $18 {[%emt 0:00:31][%mdl 1024] White has strong compensation.} a5 {[%emt 0:01:25]} 25. Rf1 {[%emt 0:03:01] Black must now prevent Qf2.} Qd6 {[%emt 0:01:33]} 26. Qf2 {[%emt 0:01:34][%csl Gf1][%cal Rf2f7]} Qe6 {[%emt 0:04:05] [#]} 27. Bc4 $1 {[%emt 0:04:07] Threatens to win with Ba3+. This pair of bishops is nice.} b5 {[%emt 0:05:27]} (27... f5 $2 28. e4 $18) 28. Bxb5 {[%emt 0:00:29]} f5 {[%emt 0:02:53]} 29. Qh4 {[%emt 0:06:30]} Qb6 $2 {[%emt 0:01:41]} (29... Kg8) 30. Qxh7 {[%emt 0:03:04]} Qe6 {[%emt 0:01:21]} 31. Nh6 {[%emt 0:02:22] Threatening mate with Rd1.} Nb4 {[%emt 0:00:40]} 32. Qh8+ {[%emt 0:00:56]} Ke7 {[%emt 0:00:02]} 33. Qg7+ {[%emt 0:00:09]} Kd6 {[%emt 0:01:00]} 34. Nf7+ {[%emt 0:00:58]} Kc7 {[%emt 0:00:29]} 35. Nxd8 {[%emt 0:00:39]} Kxd8 {[%emt 0:00:17]} 36. Rd1 {[%emt 0:00:53][%csl LRd7,LRe5][%cal Rd1d7]} Bc6 {[%emt 0:00:43]} 37. Bc4 {[%emt 0:00:34]} ({Weaker is} 37. Qxe5 Qxe5 38. Bxe5 Bxb5 $16) 37... Bd5 {[%emt 0:00:32]} 38. Qh8+ {[%emt 0:00:41]} Kc7 {[%emt 0:00:25]} 39. Bxd5 {[%emt 0:00:15]} Nxd5 {[%emt 0:00:06]} 40. Rc1+ {[%emt 0:00:00]} Kb7 {[%emt 0:00:00]} 41. Qc8+ {[%emt 0:00:36]} Kb6 {[%emt 0:01:13] [#]} 42. Bxe5 $1 {[%emt 0:01:26][%mdl 64] Deflection} Qxe5 {[%emt 0:00:49]} 43. Qc6+ {[%emt 0:00:45]} (43. Qxd7 $2 {is the wrong capture.} Qxe3+ 44. Kf1 Qxc1+ $19) 43... Ka7 {[%emt 0:00:12]} 44. Qxd7+ {[%emt 0:00:05]} Kb6 {[%emt 0:00:33]} 45. Rc6+ {[%emt 0:00:14] Artfully played by Krasteva.   Weighted Error Value: White=0.21 (precise) /Black=0.64} 1-0

[Event "European Women-ch 2023"]
[Site "Petrovac"]
[Date "2023.03.21"]
[Round "4.21"]
[White "Silva, Ana Ines Teixeira Da"]
[Black "Petrovska, Katerina"]
[Result "1-0"]
[ECO "C28"]
[WhiteElo "1792"]
[BlackElo "1907"]
[Annotator "TA"]
[PlyCount "97"]
[EventDate "2023.03.15"]
[EventType "swiss"]
[EventCountry "MNE"]
[SourceTitle "playchess.com"]
[Source "ChessBase"]
[SourceQuality "1"]
[TimeControl "40/5400+30:1800+30"]

{[%evp 13,97,18,27,0,0,-7,0,13,18,0,6,15,3,0,0,-11,33,55,95,110,116,16,18,16,14,-9,-2,-38,0,0,0,0,0,0,0,0,65,30,33,37,67,56,66,54,131,0,619,614,1555,1290,12834,12835,12813,333,272,10,14,29,21,17,12841,12841,12841,12842,29981,29982,29982,12844,12845,12845,12845,12846,12846,12846,12847,12846,12847,12846,12846,12847,12847,12847,29990,29991,29991,29992]} 1. e4 {[%emt 0:00:03]} e5 {[%emt 0:02:59]} 2. Bc4 {[%emt 0:00:17]} Nf6 {[%emt 0:01:10]} 3. d3 {[%emt 0:00:13]} Nc6 {[%emt 0:09:00]} 4. Nc3 {[%emt 0:00:40]} Be7 {[%emt 0:06:57]} 5. f4 {[%emt 0:01:26]} exf4 {[%emt 0:04:11]} 6. Bxf4 {[%emt 0:01:19]} d6 {[%emt 0:01:04]} 7. Nf3 {[%emt 0:05:14]} O-O {[%emt 0:08:08]} 8. Qd2 {[%emt 0:02:27] C28: Vienna Game: 2...Nf6 3 Bc4 Nc6.} Na5 {[%emt 0:03:03]} 9. Bb3 {[%emt 0:02:26]} Nxb3 {[%emt 0:00:05]} 10. axb3 {[%emt 0:00:06] [#] The position is equal.} c5 $146 {[%emt 0:07:43]} ({Predecessor:} 10... d5 11. Nxd5 {½-½ Solak,D (2628)-Ipatov,A (2624) TUR-ch Adana 2015 (11)}) 11. d4 {[%emt 0:30:18]} d5 {[%emt 0:14:57]} 12. exd5 {[%emt 0:13:52]} Nxd5 {[%emt 0:01:17]} 13. Nxd5 {[%emt 0:00:52]} Qxd5 {[%emt 0:00:11]} 14. O-O-O {[%emt 0:07:28]} (14. c4 $5 {[%cal Rc4d5]} Qh5 15. O-O cxd4 16. Ra5 $11 (16. Qxd4 $2 Bc5 $19) (16. Nxd4 a5 $11)) 14... Bf5 {[%emt 0:15:42] ...Rac8 would be deadly.} 15. Rhe1 $1 {[%emt 0:07:07]} Bd6 {[%emt 0:11:15]} 16. Bxd6 {[%emt 0:03:35]} Qxd6 {[%emt 0:00:04] [#]} 17. dxc5 {[%emt 0:00:55]} (17. Re5 $1 $16 {[%cal Re5f5]} Qf6 18. Rxc5 (18. dxc5 Rad8 $16)) 17... Qxc5 $11 {[%emt 0:00:15]} 18. Re5 {[%emt 0:04:52]} Qc8 {[%emt 0:00:03]} 19. Nd4 {[%emt 0:08:24]} Bg6 {[%emt 0:00:06]} 20. h4 {[%emt 0:00:30]} Qc7 {[%emt 0:06:07]} 21. Qe2 {[%emt 0:01:56]} h5 {[%emt 0:00:26]} 22. Nf5 {[%emt 0:01:26]} Bxf5 {[%emt 0:00:23]} 23. Rxf5 {[%emt 0:00:06]} g6 {[%emt 0:00:19]} 24. Re5 {[%emt 0:01:50]} Rac8 {[%emt 0:01:16]} (24... Rad8 $11) 25. g4 $1 $14 {[%emt 0:01:04] White is more active.} hxg4 {[%emt 0:05:07]} 26. h5 {[%emt 0:01:37]} Qc6 {[%emt 0:00:08]} 27. hxg6 $1 {[%emt 0:00:54]} Qxg6 {[%emt 0:01:21]} 28. Rh1 $1 {[%emt 0:00:54]} f5 {[%emt 0:00:41] [#]} ({Black should try} 28... Rc6 $14) 29. Re7 $40 {[%emt 0:01:34][%mdl 128] White is up to no good.} (29. Qh2 $1 $16 {[%cal Rh2h8] Intending Qh8+ and mate.} Qg7 30. Qh5) 29... Qg5+ $2 {[%emt 0:00:31][%mdl 8192]} (29... Rfe8 $11 30. Kb1 b6) 30. Kb1 $18 {[%emt 0:00:20]} Rc6 {[%emt 0:00:29] Dodges Qe6+} 31. Reh7 {[%emt 0:01:30] Wards off Rh6} (31. Qe5 Rh6 32. Qd5+ Kh8 $18) 31... Qf6 {[%emt 0:00:28] Wards off Qe5} 32. Qh2 {[%emt 0:00:17]} Rd6 {[%emt 0:00:33]} 33. Rh8+ $2 {[%emt 0:00:47]} (33. Rxb7 {[%csl Gb7,Gh1][%cal Rh2h7]} Qh6 34. Qxh6 Rxh6 35. Rxh6) 33... Kf7 {[%emt 0:00:09]} 34. Qh7+ {[%emt 0:00:26]} (34. Rh7+ Kg8 35. Rxb7 Qh6 36. Qxh6 Rxh6 37. Rxh6 a5 38. Rg6+ Kh8 $18) ({White should play} 34. Rh5 $18 Ke7 35. Qf4) 34... Ke8 $11 {[%emt 0:00:28] ...Rxh8 is the strong threat.} 35. Rxf8+ {[%emt 0:00:37]} Kxf8 {[%emt 0:00:14]} 36. Qxb7 {[%emt 0:00:25][%mdl 4096] Endgame Strongly threatening Qb8+. KQR-KQR} Qg7 $2 {[%emt 0:00:41][%mdl 8192] This move loses the game for Black.} (36... Re6 $11) 37. Qb8+ $18 {[%emt 0:00:15]} Ke7 {[%emt 0:00:08]} 38. Re1+ {[%emt 0:00:37]} (38. Qxa7+ Kf6 39. Qe3 Kg6 $18) 38... Re6 {[%emt 0:00:43]} 39. Qxa7+ {[%emt 0:00:09]} Kf8 {[%emt 0:00:40]} 40. Qxg7+ {[%emt 0:00:00]} (40. Rxe6 $2 {loses.} Qxa7 41. Rg6 Qg1+ 42. Ka2 Qa7+ 43. Kb1 Kf7 $19) (40. Qb8+ $142 Kf7 41. Qc7+ Kg8 42. Qc8+ (42. Rxe6 $2 Qxc7 43. Re8+ Kg7 $19) 42... Qf8 43. Qxe6+ Qf7 44. Qd6 Qg7 45. Qd8+ Kh7 46. Qh4+ Kg8 47. Re8+ Kf7 48. Re7+ Kf8 49. Rxg7) 40... Kxg7 {[%emt 0:00:00]} 41. Rxe6 {[%emt 0:00:15] KR-KPP} g3 {[%emt 0:00:09]} 42. Re1 {[%emt 0:14:26]} f4 {[%emt 0:00:51]} 43. Rg1 {[%emt 0:00:15]} Kf6 {[%emt 0:00:37]} 44. b4 {[%emt 0:00:35][%cal Bb3b4,Bb4b5,Bb5b6,Bb6b7][%mdl 32]} Ke5 {[%emt 0:00:35]} 45. b5 {[%emt 0:00:09] White wants to mate with Rd1.} Ke4 {[%emt 0:00:37]} 46. b6 {[%emt 0:04:46] b7 would kill now.} f3 {[%emt 0:00:55]} 47. Re1+ {[%emt 0:01:01]} ({And not} 47. Rxg3 f2 $11) 47... Kd5 {[%emt 0:02:48]} 48. b7 {[%emt 0:00:29]} f2 {[%emt 0:00:21]} 49. Rd1+ {[%emt 0:00:07] Weighted Error Value: White=0.40/Black=0.64} ({Inferior is} 49. b8=Q fxe1=Q+ 50. Ka2 Qf2 51. Qb7+ Kd4 $17) 1-0

[Event "European Women-ch 2023"]
[Site "Petrovac"]
[Date "2023.03.21"]
[Round "4.22"]
[White "Dylag, Emilia"]
[Black "Schulze, Lara"]
[Result "1/2-1/2"]
[ECO "E04"]
[WhiteElo "2052"]
[BlackElo "2277"]
[Annotator "TA"]
[PlyCount "100"]
[EventDate "2023.03.15"]
[EventType "swiss"]
[EventCountry "MNE"]
[SourceTitle "playchess.com"]
[Source "ChessBase"]
[SourceQuality "1"]
[TimeControl "40/5400+30:1800+30"]

{[%evp 12,100,23,-9,2,-4,-15,-37,14,-92,-90,-87,-83,-92,-79,-84,-76,-100,-24,-60,0,0,20,-8,-7,-39,-27,-31,-27,-58,-59,-62,-50,-62,-44,-47,-46,-67,-59,-72,-27,-37,0,-108,-93,-129,-69,-58,-59,-67,-70,-71,-60,-80,-66,-78,-86,-193,-195,-200,-175,-179,-172,-160,-136,-133,-137,-136,-134,-137,-127,-130,-91,-95,-95,-95,-95,-95,-101,-103,-8,-8,-8,-8,-8,-8,0,0,0,0,0]} 1. d4 {[%emt 0:00:03]} Nf6 {[%emt 0:00:08]} 2. c4 {[%emt 0:00:08]} e6 {[%emt 0:00:07]} 3. g3 {[%emt 0:00:14]} d5 {[%emt 0:00:24]} 4. Bg2 {[%emt 0:00:33]} Bb4+ {[%emt 0:01:28]} 5. Nd2 {[%emt 0:00:25]} O-O {[%emt 0:00:27]} 6. Ngf3 {[%emt 0:00:17]} dxc4 {[%emt 0:00:35]} 7. Qc2 {[%emt 0:01:05]} (7. a3 $5 {[%cal Ra3b4]} Bxd2+ 8. Bxd2 $11) 7... a5 {[%emt 0:00:30] E04: Open Catalan: 5 Nf3.} 8. O-O {[%emt 0:05:57]} b5 {[%emt 0:01:38]} 9. a3 {[%emt 0:04:27]} Bxd2 {[%emt 0:04:00]} (9... Be7 $15) 10. Bxd2 {[%emt 0:00:38]} (10. Nxd2 $11 {remains equal.} Ra6 11. a4) 10... Bb7 $17 {[%emt 0:02:04] [#]} 11. b3 $146 {[%emt 0:10:31]} ({Predecessor:} 11. a4 Be4 12. Qc1 c6 13. Qe1 b4 14. Qc1 Qd5 15. Bg5 Nbd7 16. Rd1 h6 17. Bxf6 Nxf6 {0-1 Mitrabha,G (2509)-Matlakov,M (2674) Wch Blitz Warsaw 2021 (10)}) 11... Be4 $1 {[%emt 0:05:28]} 12. Qb2 {[%emt 0:02:50]} cxb3 {[%emt 0:09:42]} 13. Qxb3 {[%emt 0:00:07]} c6 {[%emt 0:00:34]} 14. Rac1 {[%emt 0:08:23]} Na6 {[%emt 0:08:27]} (14... Qd5 $17 15. Qxd5 Nxd5) 15. Rfd1 {[%emt 0:07:21] [#]} b4 {[%emt 0:12:46]} 16. axb4 $11 {[%emt 0:06:24]} Rb8 {[%emt 0:01:35][%cal Ra6b4]} 17. Qa4 {[%emt 0:03:15]} (17. Ne5 $5 {[%cal Rg2e4]} Bxg2 18. Kxg2 Nxb4 19. Qc4 $11) 17... Nxb4 {[%emt 0:00:55]} 18. Rc5 {[%emt 0:05:37]} Nd7 {[%emt 0:03:37]} 19. Rcc1 {[%emt 0:03:19]} (19. Rxa5 Bc2 20. Qa3 Bxd1 $17) 19... Rb5 {[%emt 0:02:54]} 20. Ne1 {[%emt 0:07:36]} Bxg2 {[%emt 0:09:33]} 21. Nxg2 {[%emt 0:00:07][%cal Oc1c6]} Nb6 {[%emt 0:01:14][%csl LRa4,LRd4]} 22. Qa1 {[%emt 0:00:34]} Qd7 $36 {[%emt 0:02:22][%mdl 2048] Black has good play.} 23. Be1 {[%emt 0:05:53]} f5 {[%emt 0:06:23]} 24. Rc5 {[%emt 0:11:13]} N4d5 {[%emt 0:09:19]} 25. Rdc1 {[%emt 0:07:30]} Rc8 {[%emt 0:05:57]} ({Much weaker is} 25... Rxc5 26. dxc5 Nc8 27. Bxa5 $11) 26. Nh4 {[%emt 0:01:38]} Qb7 {[%emt 0:03:01]} 27. Rb1 {[%emt 0:04:26]} (27. Nf3 $11 {keeps the balance.}) 27... a4 {[%emt 0:02:06]} 28. Nf3 {[%emt 0:02:13]} Nd7 {[%emt 0:03:16] Excellent horsemanship.} ({Black should try} 28... Rxb1 $17 29. Qxb1 Ra8) 29. Rcxb5 $15 {[%emt 0:01:15]} cxb5 {[%emt 0:00:02]} 30. Qxa4 {[%emt 0:00:52]} bxa4 {[%emt 0:01:13]} 31. Rxb7 {[%emt 0:00:03]} N7b6 {[%emt 0:00:40]} 32. Ra7 {[%emt 0:00:52]} Ra8 {[%emt 0:01:52]} 33. Rxa8+ {[%emt 0:00:32]} Nxa8 {[%emt 0:00:01][%mdl 4096] Endgame KBN-KNN} 34. Ba5 {[%emt 0:00:40]} (34. Kf1 $17) 34... Nab6 {[%emt 0:02:00] ...Nc4 would be deadly.} 35. Bxb6 {[%emt 0:00:30] Black must now prevent Bc5.} Nxb6 $19 {[%emt 0:00:01] KN-KN} 36. Nd2 {[%emt 0:00:15]} Kf7 {[%emt 0:00:23]} 37. Kf1 {[%emt 0:00:15]} Ke7 {[%emt 0:00:10]} 38. Ke1 {[%emt 0:00:17]} Kd6 {[%emt 0:00:20]} 39. Kd1 {[%emt 0:01:11] [#]} Kd5 $1 {[%emt 0:00:33]} 40. e3 {[%emt 0:00:00]} Nd7 {[%emt 0:00:00]} 41. Kc2 {[%emt 0:03:03]} e5 {[%emt 0:05:23]} 42. dxe5 {[%emt 0:03:15]} Nxe5 {[%emt 0:00:23]} ({Reject} 42... Kxe5 $6 43. Kc3 $11) 43. f3 {[%emt 0:07:27] Dodges Ng4} Nc4 {[%emt 0:08:46] Strongly threatening ...Nxd2.} 44. e4+ {[%emt 0:01:45]} fxe4 {[%emt 0:00:10]} 45. Nxe4 {[%emt 0:01:06]} h6 {[%emt 0:07:31]} ({Better is} 45... a3 $17) 46. Nc3+ $11 {[%emt 0:02:08] The position is equal.} Kd4 {[%emt 0:00:11] ...Ne3+ is the strong threat.} 47. Nxa4 {[%emt 0:00:47]} Ke3 {[%emt 0:01:42]} 48. f4 {[%emt 0:01:13]} Kf3 {[%emt 0:04:18]} 49. Kd3 {[%emt 0:01:35]} Ne3 {[%emt 0:02:37]} 50. Nc5 {[%emt 0:02:55]} Ng4 {[%emt 0:05:24] Black had all chances to win.   Weighted Error Value: White=0.18 (very precise) /Black=0.18 (very precise)} 1/2-1/2

[Event "European Women-ch 2023"]
[Site "Petrovac"]
[Date "2023.03.21"]
[Round "4.22"]
[White "Gamal, Alaa"]
[Black "Mashchenko, Tamila"]
[Result "0-1"]
[ECO "E94"]
[WhiteElo "1748"]
[BlackElo "1956"]
[Annotator "TA"]
[PlyCount "88"]
[EventDate "2023.03.15"]
[EventType "swiss"]
[EventCountry "MNE"]
[SourceTitle "playchess.com"]
[Source "ChessBase"]
[SourceQuality "1"]
[TimeControl "40/5400+30:1800+30"]

{[%evp 23,88,11,30,35,43,47,50,50,57,11,51,39,55,48,48,28,68,66,62,50,52,38,232,235,216,243,239,216,243,255,233,208,196,0,137,93,123,59,55,35,104,59,52,29,27,-76,-85,-160,-168,-477,-479,-470,-356,-862,-654,-2920,-2595,-29987,-29988,-29991,-29992,-29993,-29994,-29994,-29995,-29995,-29996]} 1. d4 {[%emt 0:13:34]} Nf6 {[%emt 0:01:55]} 2. Nf3 {[%emt 0:00:11]} g6 {[%emt 0:00:11]} 3. c4 {[%emt 0:00:11]} Bg7 {[%emt 0:00:24]} 4. Nc3 {[%emt 0:00:09]} O-O {[%emt 0:00:25]} 5. e4 {[%emt 0:00:07]} d6 {[%emt 0:00:06]} 6. Be2 {[%emt 0:01:10]} Nbd7 {[%emt 0:00:50]} 7. O-O {[%emt 0:00:20]} e5 {[%emt 0:00:04]} 8. d5 {[%emt 0:00:46]} Nc5 {[%emt 0:00:17]} 9. Qc2 {[%emt 0:00:16]} a5 {[%emt 0:00:07]} 10. Bg5 {[%emt 0:00:23]} h6 {[%emt 0:00:32]} 11. Be3 {[%emt 0:00:30]} b6 {[%emt 0:00:12]} 12. Nd2 {[%emt 0:03:19]} Bg4 {[%emt 0:01:29]} 13. Rae1 {[%emt 0:02:08] E94: King's Indian: Classical: 6 Be2 e5 7 0-0: Various Black 7th moves.} Bxe2 {[%emt 0:11:23]} 14. Rxe2 {[%emt 0:00:31] [#]} Nh5 $146 {[%emt 0:00:22]} ({Predecessor:} 14... Ng4 15. Bxc5 bxc5 16. Nb5 h5 17. Nf3 f5 18. h3 Nh6 19. exf5 Nxf5 20. Qe4 g5 {0-1 Zanan,E (2434)-Bakalchuk,J (2389) ISR-ch Tiberias 2016 (9)}) 15. g3 {[%emt 0:00:48] White is slightly better.} Qd7 {[%emt 0:05:57][%cal Oh5f4]} 16. Kg2 {[%emt 0:04:09]} (16. f3 $14 {might be stronger.}) 16... Kh8 {[%emt 0:05:36]} (16... Nf4+ $5 17. Bxf4 (17. gxf4 exf4 18. Bxf4 Bxc3 $11) 17... exf4 $11) 17. f3 {[%emt 0:04:24]} Rg8 {[%emt 0:05:50]} 18. b3 {[%emt 0:01:00]} f5 {[%emt 0:12:25]} 19. a3 {[%emt 0:06:17][%cal Ba2a3,Ba3b4][%mdl 32]} Bf6 {[%emt 0:04:41]} 20. b4 {[%emt 0:07:11]} (20. Bxh6 g5 $15) 20... axb4 {[%emt 0:03:05]} 21. axb4 {[%emt 0:02:06]} Na6 {[%emt 0:00:51]} ({Not} 21... f4 22. bxc5 fxe3 23. c6 $16 (23. Rxe3 bxc5 24. Ree1 Rgb8 $14)) 22. Rb1 {[%emt 0:02:58]} (22. Qb2 {with more complications.} f4 23. Bf2 Be7 24. g4) 22... g5 $2 {[%emt 0:09:35] [#]} (22... f4 $14) 23. exf5 $18 {[%emt 0:13:19]} Nf4+ {[%emt 0:03:14]} 24. Bxf4 {[%emt 0:00:54]} ({Weaker is} 24. gxf4 gxf4+ 25. Kh1 fxe3 $11) 24... gxf4 {[%emt 0:00:31]} 25. g4 {[%emt 0:00:06]} h5 {[%emt 0:02:45]} 26. h3 {[%emt 0:02:30]} Bh4 {[%emt 0:01:00]} 27. Kf1 {[%emt 0:03:29]} Qh7 {[%emt 0:09:45]} 28. Kg2 $2 {[%emt 0:25:50]} (28. Kg1 $18) 28... Raf8 {[%emt 0:03:37]} (28... Qd7 $1 $11) 29. Nde4 {[%emt 0:05:07]} Qxf5 {[%emt 0:05:36]} 30. Nf2 {[%emt 0:02:00]} (30. Kg1 $16) 30... Qf7 $14 {[%emt 0:01:17]} 31. Nce4 {[%emt 0:01:54]} Rg7 {[%emt 0:03:32]} (31... Qe7 $14) 32. Qa4 {[%emt 0:04:26]} Nb8 {[%emt 0:00:20][%cal Ba6b8,Bb8d7,Bd7f6][%mdl 32] Black is weak on the light squares} 33. Rh1 {[%emt 0:00:52]} (33. c5 {seems wilder.} Bxf2 34. Kxf2 dxc5 35. bxc5 bxc5 36. Rd1) 33... Nd7 {[%emt 0:01:39]} 34. Qc6 {[%emt 0:03:25] [#]} (34. Nd1 $1 $11 {was the only way to keep the balance.}) 34... Bxf2 $1 $17 {[%emt 0:00:44]} 35. Kxf2 {[%emt 0:01:23]} ({White should play} 35. Nxf2 Nf6 36. Qa4) 35... Nf6 {[%emt 0:00:25] Strongly threatening ...Nxe4+.} 36. Ke1 $2 {[%emt 0:02:43]} (36. Nd2 {is tougher.}) 36... Nxe4 $19 {[%emt 0:00:23]} 37. Rxe4 {[%emt 0:00:10]} Qf6 {[%emt 0:00:14] ...Qh4+ is the strong threat.} 38. Re2 $2 {[%emt 0:01:37]} (38. Kd1 Qh4 39. Ree1) 38... Qh4+ {[%emt 0:00:20]} 39. Kf1 {[%emt 0:00:31]} hxg4 {[%emt 0:00:37]} 40. fxg4 {[%emt 0:00:31]} f3 {[%emt 0:01:39][%cal Bf4f3,Bf3f2][%mdl 32] Black mates.} 41. Re4 {[%emt 0:06:29]} Qg3 {[%emt 0:00:14]} 42. Rg1 {[%emt 0:00:33]} Qxh3+ {[%emt 0:00:13]} 43. Kf2 {[%emt 0:01:35]} Qh2+ {[%emt 0:00:07]} 44. Kf1 {[%emt 0:00:49]} f2 {[%emt 0:00:20] Never resign too early!   Weighted Error Value: White=0.85/Black=0.26 (precise)} 0-1